bitfinex-derivatives/quotes_SOLF0:USTF0_20250907
["timestamp","ask_amount","ask_price","bid_price","bid_amount"]
[1757205049016,7.94,200.75,200.69,89.24973216]
[1757205052308,7.94,200.75,200.69,86.79386162]
[1757205057919,7.94,200.75,200.69,78.56386162]
[1757205058114,7.94,200.77,200.7,8.23]
[1757205061122,13.53180414,200.77,200.7,8.23]
[1757205069032,13.53180414,200.76,200.69,86.79386162]
[1757205069232,7.94,200.75,200.69,86.79386162]
[1757205073139,13.53180414,200.75,200.69,86.79386162]
[1757205073436,13.53180414,200.75,200.7,1.57321846]
[1757205073736,5.59180414,200.75,200.71,8.23]
[1757205073929,7.94,200.74,200.69,78.56386162]
[1757205074237,7.94,200.72,200.69,86.79386162]
[1757205074836,7.94,200.72,200.69,78.56386162]
[1757205075035,7.94,200.72,200.7,8.23]
[1757205078133,13.53180414,200.72,200.7,8.23]
[1757205082639,5.59180414,200.72,200.7,8.23]
[1757205082839,7.85,200.71,200.7,8.23]
[1757205084441,7.85,200.71,200.69,78.56386162]
[1757205084442,13.44180414,200.71,200.69,78.56386162]
[1757205084642,7.85,200.7,200.69,78.56386162]
[1757205086645,7.85,200.7,200.66,7.43]
[1757205086943,13.44749263,200.69,200.66,7.43]
[1757205087140,7.85,200.69,200.66,7.43]
[1757205087845,5.63443181,200.7,200.66,7.43]
[1757205088046,7.85,200.69,200.66,7.43]
[1757205088244,5.63443181,200.7,200.66,7.43]
[1757205088449,7.85,200.68,200.66,7.43]
[1757205106166,7.85,200.69,200.64,1.57321846]
[1757205106372,7.85,200.69,200.64,9.00321846]
[1757205106674,5.59749263,200.7,200.64,1.57321846]
[1757205106872,7.85,200.68,200.65,7.43]
[1757205107974,7.85,200.68,200.64,1.57321846]
[1757205108176,7.85,200.68,200.65,7.43]
[1757205109571,7.89,200.68,200.65,7.43]
[1757205114476,0.03170737,200.69,200.65,7.43]
[1757205114779,7.89,200.68,200.65,7.43]
[1757205115080,7.89,200.68,200.64,1.57321846]
[1757205115278,7.89,200.68,200.65,8.07]
[1757205116278,7.89,200.68,200.64,1.57321846]
[1757205116580,7.89,200.68,200.65,8.07]
[1757205117279,7.89,200.68,200.64,1.57321846]
[1757205117776,7.89,200.68,200.65,8.07]
[1757205117980,7.89,200.68,200.64,1.57321846]
[1757205118183,7.89,200.68,200.65,8.07]
[1757205118883,7.89,200.68,200.64,1.57321846]
[1757205119282,7.89,200.68,200.65,8.07]
[1757205119981,7.89,200.68,200.64,1.57321846]
[1757205120288,7.89,200.68,200.65,8.07]
[1757205121486,7.89,200.68,200.64,1.57321846]
[1757205121786,7.89,200.68,200.65,8.07]
[1757205123179,5.6292,200.69,200.65,8.07]
[1757205123376,7.89,200.68,200.64,9.64321846]
[1757205123581,5.6292,200.69,200.64,8.07]
[1757205123986,7.89,200.68,200.63,1.57321846]
[1757205124189,7.89,200.68,200.64,8.07]
[1757205124386,5.6292,200.69,200.63,1.57321846]
[1757205124576,7.89,200.68,200.63,9.64321846]
[1757205124778,5.6292,200.69,200.63,1.57321846]
[1757205125087,13.5192,200.69,200.64,8.07]
[1757205125490,5.6292,200.69,200.63,1.57321846]
[1757205125689,13.5192,200.69,200.64,8.07]
[1757205125885,5.6292,200.69,200.63,1.57321846]
[1757205126487,13.48749263,200.68,200.64,8.07]
[1757205126688,13.48749263,200.68,200.63,1.57321846]
[1757205127693,13.48749263,200.68,200.64,8.07]
[1757205127990,7.89,200.67,200.64,8.07]
[1757205128185,7.89,200.67,200.63,1.57321846]
[1757205128390,7.89,200.67,200.64,8.07]
[1757205129893,7.89,200.67,200.63,1.57321846]
[1757205130190,7.89,200.67,200.64,8.07]
[1757205130490,7.89,200.67,200.63,1.57321846]
[1757205130491,13.48749263,200.67,200.63,1.57321846]
[1757205130892,13.48749263,200.67,200.64,8.07]
[1757205133088,5.59749263,200.67,200.64,8.07]
[1757205133295,7.89,200.66,200.64,8.07]
[1757205140697,13.18749263,200.67,200.62,7.51]
[1757205140900,13.18749263,200.66,200.61,77.77029717]
[1757205141100,7.59,200.65,200.62,7.51]
[1757205146496,5.59749263,200.67,200.62,7.51]
[1757205146903,7.59,200.66,200.62,7.51]
[1757205147303,5.59749263,200.67,200.62,7.51]
[1757205147509,7.59,200.66,200.62,7.51]
[1757205148108,5.59749263,200.67,200.62,7.51]
[1757205148309,7.59,200.66,200.62,7.51]
[1757205148503,5.59749263,200.67,200.62,7.51]
[1757205148909,7.59,200.66,200.62,7.51]
[1757205149110,5.59749263,200.67,200.62,7.51]
[1757205149609,7.59,200.66,200.62,7.51]
[1757205150106,5.59749263,200.67,200.62,7.51]
[1757205150912,7.59,200.66,200.62,7.51]
[1757205151408,5.59749263,200.67,200.62,7.51]
[1757205151809,7.59,200.66,200.62,7.51]
[1757205152610,5.59749263,200.67,200.62,7.51]
[1757205152811,7.59,200.66,200.62,7.51]
[1757205153113,5.59749263,200.67,200.62,7.51]
[1757205153309,7.59,200.66,200.62,7.51]
[1757205153504,5.59749263,200.67,200.62,7.51]
[1757205153708,7.59,200.66,200.61,77.77029717]
[1757205153915,5.59749263,200.67,200.62,7.51]
[1757205154103,7.59,200.66,200.62,7.51]
[1757205154301,5.59749263,200.67,200.62,7.51]
[1757205154610,7.59,200.66,200.61,77.77029717]
[1757205154811,5.59749263,200.67,200.62,7.51]
[1757205155111,5.59749263,200.67,200.61,77.77029717]
[1757205155411,7.59,200.66,200.61,85.28029717]
[1757205155605,5.59749263,200.67,200.61,77.77029717]
[1757205156004,7.59,200.66,200.61,85.28029717]
[1757205156410,5.59749263,200.67,200.61,77.77029717]
[1757205156610,7.59,200.66,200.61,85.28029717]
[1757205156810,5.59749263,200.67,200.62,7.51]
[1757205157014,13.18749263,200.67,200.62,7.51]
[1757205157314,5.59749263,200.67,200.61,77.77029717]
[1757205157516,13.18749263,200.67,200.62,7.51]
[1757205157709,5.59749263,200.67,200.61,77.77029717]
[1757205158014,13.18749263,200.67,200.62,7.51]
[1757205158215,5.59749263,200.67,200.61,77.77029717]
[1757205158612,13.18749263,200.67,200.62,7.51]
[1757205159007,5.59749263,200.67,200.61,77.77029717]
[1757205159310,13.18749263,200.67,200.62,7.51]
[1757205159710,5.59749263,200.67,200.61,77.77029717]
[1757205160812,13.18749263,200.67,200.62,7.51]
[1757205161315,5.59749263,200.67,200.61,77.77029717]
[1757205161515,13.18749263,200.67,200.62,7.51]
[1757205161716,5.59749263,200.67,200.61,77.77029717]
[1757205161911,13.18749263,200.67,200.62,7.51]
[1757205162110,5.59749263,200.67,200.61,77.77029717]
[1757205162414,13.18749263,200.67,200.62,7.51]
[1757205162716,7.59,200.66,200.61,85.28029717]
[1757205163013,13.18749263,200.67,200.62,7.51]
[1757205163613,5.59749263,200.67,200.61,77.77029717]
[1757205164116,13.18749263,200.67,200.62,7.51]
[1757205164317,7.59,200.66,200.61,77.77029717]
[1757205164517,7.59,200.66,200.62,7.51]
[1757205164721,7.59,200.66,200.61,77.77029717]
[1757205165017,13.18749263,200.67,200.62,7.51]
[1757205165315,7.59,200.66,200.61,85.28029717]
[1757205165613,5.59749263,200.67,200.61,77.77029717]
[1757205166112,13.18749263,200.67,200.62,7.51]
[1757205166318,5.59749263,200.67,200.61,77.77029717]
[1757205167023,13.18749263,200.67,200.62,7.51]
[1757205167223,5.59749263,200.67,200.61,77.77029717]
[1757205167422,13.18749263,200.67,200.62,7.51]
[1757205167924,5.59749263,200.67,200.61,77.77029717]
[1757205169324,13.64749263,200.67,200.62,8.12]
[1757205169827,5.59749263,200.67,200.61,77.77029717]
[1757205170123,13.64749263,200.67,200.62,8.12]
[1757205170516,5.59749263,200.67,200.62,8.12]
[1757205170722,13.64749263,200.67,200.62,8.12]
[1757205170923,5.59749263,200.67,200.61,77.77029717]
[1757205171224,5.59749263,200.67,200.62,8.12]
[1757205171528,13.64749263,200.67,200.62,8.12]
[1757205172027,5.59749263,200.67,200.61,77.77029717]
[1757205172925,8.05,200.66,200.61,85.89029717]
[1757205173126,13.64749263,200.67,200.62,8.12]
[1757205173627,5.59749263,200.67,200.61,77.77029717]
[1757205173825,13.64749263,200.67,200.62,8.12]
[1757205174027,5.59749263,200.67,200.61,77.77029717]
[1757205174930,13.64749263,200.67,200.62,8.12]
[1757205175130,5.59749263,200.67,200.61,77.77029717]
[1757205175330,13.64749263,200.67,200.62,8.12]
[1757205175630,5.59749263,200.67,200.61,77.77029717]
[1757205175830,13.64749263,200.67,200.62,8.12]
[1757205176330,5.59749263,200.67,200.61,77.77029717]
[1757205176932,13.64749263,200.67,200.61,77.77029717]
[1757205177226,13.64749263,200.67,200.62,8.12]
[1757205177933,5.6292,200.69,200.64,8.12]
[1757205178133,0.03170737,200.69,200.64,8.12]
[1757205182037,0.03170737,200.69,200.67,8.12]
[1757205182331,0.03170737,200.69,200.68,12.6000236]
[1757205182725,5.59749263,200.75,200.69,8.12]
[1757205182931,5.59749263,200.75,200.72,2.45955276]
[1757205183234,5.59749263,200.76,200.74,8.12]
[1757205183529,5.59749263,200.76,200.72,2.45955276]
[1757205183530,5.59749263,200.77,200.72,2.45955276]
[1757205183734,5.59749263,200.78,200.73,4.47549492]
[1757205184033,5.59749263,200.78,200.72,2.45955276]
[1757205184034,13.64749263,200.78,200.75,8.12]
[1757205184231,8.05,200.77,200.75,8.12]
[1757205184933,5.59749263,200.79,200.75,8.12]
[1757205185327,8.05,200.78,200.75,8.12]
[1757205185529,8.05,200.78,200.69,4.483]
[1757205185530,5.59749263,200.77,200.7,8.12]
[1757205185729,8.05,200.76,200.71,4.4700237]
[1757205185934,8.05,200.76,200.7,8.12]
[1757205186131,8.05,200.74,200.66,2.45955276]
[1757205186330,8.05,200.72,200.67,4.47242298]
[1757205186535,8.05,200.72,200.64,8.12]
[1757205186735,8.05,200.72,200.65,4.47242847]
[1757205186939,8.05,200.72,200.66,4.47242847]
[1757205187135,8.05,200.72,200.67,4.47242847]
[1757205187335,8.05,200.72,200.64,8.12]
[1757205187535,8.05,200.72,200.65,4.47248372]
[1757205187738,8.05,200.72,200.66,4.47248372]
[1757205188037,8.05,200.72,200.67,4.47248372]
[1757205188337,8.05,200.72,200.64,8.12]
[1757205188641,8.05,200.72,200.65,4.47249614]
[1757205188832,8.05,200.72,200.66,4.47249614]
[1757205189138,8.05,200.72,200.67,4.47249614]
[1757205189336,8.05,200.72,200.64,8.12]
[1757205189635,8.05,200.72,200.65,4.47251923]
[1757205189835,8.05,200.72,200.66,4.47251923]
[1757205190038,8.05,200.72,200.67,4.47251923]
[1757205190240,8.05,200.72,200.64,8.12]
[1757205190437,8.05,200.72,200.65,4.47255305]
[1757205190736,8.05,200.72,200.66,4.47255305]
[1757205190934,8.05,200.72,200.67,4.47255305]
[1757205191138,8.05,200.72,200.64,8.12]
[1757205191331,8.05,200.72,200.65,4.47255057]
[1757205191635,8.05,200.72,200.66,4.47255057]
[1757205191835,8.05,200.72,200.67,4.47255057]
[1757205192037,8.05,200.72,200.64,8.12]
[1757205192341,8.05,200.72,200.65,4.47245504]
[1757205192636,8.05,200.72,200.66,4.47245504]
[1757205192837,8.05,200.72,200.67,4.47245504]
[1757205193039,8.05,200.72,200.64,8.12]
[1757205193241,8.05,200.72,200.65,4.47246498]
[1757205193440,8.05,200.72,200.66,4.47246498]
[1757205193636,8.05,200.72,200.67,4.47246498]
[1757205193837,8.05,200.72,200.64,8.12]
[1757205194133,8.05,200.72,200.65,4.47261681]
[1757205194337,8.05,200.72,200.66,4.47261681]
[1757205194533,8.05,200.7,200.64,8.12]
[1757205194734,8.05,200.7,200.63,2.45955276]
[1757205194735,8.05,200.7,200.65,4.47371935]
[1757205194943,8.05,200.7,200.63,10.57955276]
[1757205195242,8.05,200.7,200.64,4.47360472]
[1757205195542,7.17160547,200.71,200.65,12.59360472]
[1757205195739,7.17160547,200.71,200.65,8.12]
[1757205195947,8.05,200.7,200.65,8.12]
[1757205196241,7.17160547,200.71,200.65,8.12]
[1757205196639,8.05,200.7,200.63,1.57411284]
[1757205196840,13.64749263,200.7,200.63,1.57411284]
[1757205197644,5.59749263,200.69,200.63,1.57411284]
[1757205197839,1.57411284,200.69,200.63,1.57411284]
[1757205198046,8.05,200.68,200.63,1.57411284]
[1757205198247,1.57411284,200.69,200.63,1.57411284]
[1757205198543,8.05,200.68,200.63,1.57411284]
[1757205198743,8.05,200.68,200.63,9.69411284]
[1757205198944,8.09,200.68,200.63,9.61411284]
[1757205199445,1.57411284,200.69,200.63,1.57411284]
[1757205200643,1.57411284,200.69,200.64,8.04]
[1757205201640,8.09,200.68,200.64,8.04]
[1757205202044,5.59749263,200.7,200.63,1.57411284]
[1757205202240,8.09,200.68,200.63,9.61411284]
[1757205202551,8.09,200.68,200.63,8.04]
[1757205202844,1.57411284,200.69,200.62,1.57411284]
[1757205203052,1.57411284,200.69,200.63,4.48287324]
[1757205203237,1.57411284,200.69,200.62,1.57411284]
[1757205203440,1.57411284,200.69,200.63,4.48276279]
[1757205203643,8.09,200.68,200.63,8.04]
[1757205204346,1.57411284,200.69,200.62,1.57411284]
[1757205204547,1.57411284,200.69,200.63,4.48265471]
[1757205204742,8.09,200.68,200.63,8.04]
[1757205205144,8.09,200.68,200.62,1.57411284]
[1757205205348,1.57411284,200.69,200.63,4.48254895]
[1757205205551,8.09,200.68,200.62,9.61411284]
[1757205205747,8.09,200.68,200.63,12.52254895]
[1757205205954,1.57411284,200.69,200.62,1.57411284]
[1757205206253,8.09,200.68,200.63,12.52254895]
[1757205206451,8.09,200.68,200.63,8.04]
[1757205207350,1.57411284,200.69,200.62,1.57411284]
[1757205207546,8.09,200.68,200.63,12.52234425]
[1757205207751,8.09,200.68,200.63,8.04]
[1757205208155,5.59749263,200.68,200.62,1.57411284]
[1757205208453,8.09,200.68,200.63,8.04]
[1757205208650,7.17160547,200.69,200.62,1.57411284]
[1757205208956,8.09,200.68,200.62,9.61411284]
[1757205212755,5.59749263,200.67,200.57,8.04]
[1757205212960,8.09,200.66,200.6,9.61411284]
[1757205215356,8.09,200.66,200.6,8.04]
[1757205222067,5.59749263,200.68,200.61,1.57411284]
[1757205222267,13.68749263,200.68,200.62,8.04]
[1757205226571,13.68749263,200.68,200.66,8.04]
[1757205226572,8.09,200.68,200.66,8.04]
[1757205228470,5.59749263,200.72,200.68,8.04]
[1757205228671,8.09,200.71,200.67,1.57411284]
[1757205228865,8.09,200.71,200.68,8.04]
[1757205229073,8.07,200.72,200.68,8.04]
[1757205229276,8.07,200.71,200.67,1.57411284]
[1757205229574,8.07,200.71,200.68,7.52]
[1757205230577,8.07,200.71,200.67,1.57411284]
[1757205230776,8.07,200.71,200.68,7.52]
[1757205234083,5.59749263,200.72,200.68,7.52]
[1757205234281,8.07,200.71,200.68,7.52]
[1757205236083,5.59749263,200.72,200.68,7.52]
[1757205236376,8.07,200.71,200.68,7.52]
[1757205237680,5.59749263,200.72,200.68,7.52]
[1757205237977,8.07,200.71,200.68,7.52]
[1757205238386,5.59749263,200.72,200.68,7.52]
[1757205238587,8.07,200.71,200.68,7.52]
[1757205238887,5.59749263,200.72,200.68,7.52]
[1757205239585,8.07,200.71,200.68,7.52]
[1757205239787,5.59749263,200.72,200.68,7.52]
[1757205239987,8.07,200.71,200.68,7.52]
[1757205240188,5.59749263,200.72,200.68,7.52]
[1757205240386,8.07,200.71,200.68,7.52]
[1757205240689,5.59749263,200.72,200.68,7.52]
[1757205240888,8.07,200.71,200.68,7.52]
[1757205241088,5.59749263,200.72,200.68,7.52]
[1757205241289,8.07,200.71,200.68,7.52]
[1757205241787,5.59749263,200.72,200.68,7.52]
[1757205241980,8.07,200.71,200.68,7.52]
[1757205242384,5.59749263,200.72,200.68,7.52]
[1757205243090,8.07,200.71,200.68,7.52]
[1757205243584,5.59749263,200.72,200.68,7.52]
[1757205245289,8.07,200.71,200.68,7.52]
[1757205245990,5.59749263,200.72,200.68,7.52]
[1757205246485,5.59749263,200.72,200.67,7.52]
[1757205246891,5.59749263,200.72,200.66,1.57411284]
[1757205247694,13.66749263,200.72,200.67,7.52]
[1757205247893,5.59749263,200.72,200.66,1.57411284]
[1757205248295,13.66749263,200.72,200.67,7.52]
[1757205248494,5.59749263,200.72,200.66,1.57411284]
[1757205248696,13.66749263,200.72,200.67,7.52]
[1757205248896,5.59749263,200.72,200.66,1.57411284]
[1757205249493,5.59749263,200.73,200.67,7.52]
[1757205249699,5.59749263,200.73,200.66,1.57411284]
[1757205250102,8.07,200.72,200.67,7.52]
[1757205250303,5.59749263,200.73,200.66,1.57411284]
[1757205251094,8.07,200.72,200.67,7.52]
[1757205251494,5.59749263,200.73,200.66,1.57411284]
[1757205252089,8.07,200.72,200.67,7.52]
[1757205252295,5.59749263,200.73,200.66,1.57411284]
[1757205252497,8.07,200.72,200.67,7.52]
[1757205252697,5.59749263,200.73,200.66,1.57411284]
[1757205253294,8.07,200.72,200.67,7.52]
[1757205253592,5.59749263,200.73,200.66,1.57411284]
[1757205253999,8.07,200.72,200.63,7.52]
[1757205254200,5.59749263,200.73,200.68,7.52]
[1757205255098,8.07,200.72,200.68,7.52]
[1757205255602,5.59749263,200.73,200.68,7.52]
[1757205255796,8.07,200.72,200.68,7.52]
[1757205255996,5.59749263,200.73,200.68,7.52]
[1757205256697,8.07,200.72,200.68,7.52]
[1757205257304,5.59749263,200.73,200.68,7.52]
[1757205257507,8.07,200.72,200.68,7.52]
[1757205257701,5.59749263,200.73,200.68,7.52]
[1757205257901,8.07,200.72,200.68,7.52]
[1757205258996,7.44,200.72,200.68,7.52]
[1757205259203,5.59749263,200.73,200.68,7.52]
[1757205259399,7.44,200.72,200.68,7.52]
[1757205259809,5.59749263,200.73,200.68,7.52]
[1757205260203,7.44,200.72,200.68,7.52]
[1757205260402,7.44,200.71,200.68,7.52]
[1757205261108,5.59749263,200.72,200.64,2.45892903]
[1757205261309,5.59749263,200.72,200.66,8.1]
[1757205266221,5.59749263,200.72,200.67,4.49647964]
[1757205266512,5.59749263,200.72,200.66,8.1]
[1757205266717,7.44,200.71,200.68,8.1]
[1757205267114,13.03749263,200.71,200.68,8.1]
[1757205268918,7.44,200.7,200.68,8.1]
[1757205269118,13.03749263,200.7,200.68,8.1]
[1757205269317,7.44,200.7,200.68,8.1]
[1757205270424,13.03749263,200.7,200.68,8.1]
[1757205270923,13.03749263,200.7,200.64,2.45892903]
[1757205270924,5.59749263,200.7,200.65,8.1]
[1757205271123,5.59749263,200.7,200.64,2.45892903]
[1757205271124,5.59749263,200.7,200.67,8.1]
[1757205271328,5.59749263,200.7,200.69,8.1]
[1757205271825,8.39163184,200.72,200.69,8.1]
[1757205272025,7.44,200.71,200.69,8.1]
[1757205273227,15.83163184,200.71,200.69,8.1]
[1757205273428,8.39163184,200.71,200.69,8.1]
[1757205273726,7.44,200.7,200.69,8.1]
[1757205276430,7.44,200.7,200.64,2.45892903]
[1757205276625,5.60680363,200.69,200.65,4.50898779]
[1757205276823,5.60680363,200.69,200.66,4.50898779]
[1757205277025,5.60680363,200.69,200.68,8.1]
[1757205277225,5.60680363,200.69,200.68,12.60898779]
[1757205278933,7.44,200.7,200.68,12.60898779]
[1757205279132,7.44,200.7,200.68,8.1]
[1757205281330,5.60662528,200.69,200.68,8.1]
[1757205281631,5.60662528,200.69,200.68,12.60890187]
[1757205286942,5.60662528,200.69,200.68,4.50890187]
[1757205287239,5.60662528,200.69,200.59,8.1]
[1757205287240,7.94,200.69,200.59,8.1]
[1757205287437,7.44,200.64,200.6,4.51017518]
[1757205287633,7.44,200.63,200.61,12.61017518]
[1757205287842,7.44,200.63,200.62,4.51017518]
[1757205290138,7.44,200.63,200.61,8.1]
[1757205309658,13.09287184,200.67,200.61,2.45892903]
[1757205309858,7.49,200.67,200.63,7.77]
[1757205310057,7.49,200.67,200.61,2.45892903]
[1757205310258,7.49,200.67,200.63,7.77]
[1757205310461,7.49,200.7,200.65,7.77]
[1757205310767,5.60287184,200.71,200.64,2.45892903]
[1757205310968,7.49,200.7,200.65,7.77]
[1757205311460,5.60287184,200.71,200.64,2.45892903]
[1757205311665,7.49,200.7,200.64,10.22892903]
[1757205313666,7.49,200.7,200.65,7.77]
[1757205314169,7.49,200.7,200.67,7.77]
[1757205314362,7.49,200.7,200.65,7.77]
[1757205314668,7.49,200.7,200.66,4.49576522]
[1757205314865,5.60287184,200.72,200.68,7.77]
[1757205314866,7.49,200.72,200.68,7.77]
[1757205315066,7.49,200.72,200.67,2.45892903]
[1757205315271,13.09287184,200.73,200.68,7.77]
[1757205315566,5.60287184,200.73,200.67,2.45892903]
[1757205315969,7.49,200.72,200.67,10.22892903]
[1757205316476,5.60287184,200.73,200.67,2.45892903]
[1757205316669,7.49,200.73,200.68,7.77]
[1757205317072,7.49,200.74,200.68,7.77]
[1757205319575,6.47034532,200.75,200.7,1.57328197]
[1757205319768,7.66,200.74,200.7,1.57328197]
[1757205321270,13.26287184,200.74,200.7,1.57328197]
[1757205325880,5.60287184,200.73,200.7,1.57328197]
[1757205326173,7.66,200.72,200.7,1.57328197]
[1757205326378,5.60287184,200.73,200.7,1.57328197]
[1757205326578,7.66,200.72,200.7,1.57328197]
[1757205327083,5.60287184,200.73,200.68,9.34328197]
[1757205328481,7.66,200.72,200.68,9.34328197]
[1757205328683,5.60287184,200.73,200.68,9.34328197]
[1757205329080,7.66,200.72,200.68,9.34328197]
[1757205329280,5.60287184,200.73,200.68,9.34328197]
[1757205329480,7.66,200.72,200.68,9.34328197]
[1757205329681,5.60287184,200.73,200.68,9.34328197]
[1757205330084,7.66,200.72,200.68,9.34328197]
[1757205330282,5.60287184,200.73,200.68,9.34328197]
[1757205330482,7.66,200.72,200.68,9.34328197]
[1757205331581,7.66,200.72,200.68,7.77]
[1757205331775,5.60287184,200.73,200.68,9.34328197]
[1757205332282,7.66,200.72,200.68,9.34328197]
[1757205332677,5.60287184,200.73,200.68,9.34328197]
[1757205333078,5.60287184,200.73,200.69,7.66]
[1757205333275,7.66,200.72,200.69,7.66]
[1757205333476,13.26287184,200.73,200.69,7.66]
[1757205333680,7.66,200.72,200.69,7.66]
[1757205335186,5.60287184,200.73,200.69,7.66]
[1757205335693,7.66,200.72,200.69,7.66]
[1757205336287,5.60287184,200.73,200.69,7.66]
[1757205336487,7.66,200.72,200.69,7.66]
[1757205336687,7.66,200.72,200.68,1.57328197]
[1757205337188,7.66,200.72,200.69,7.66]
[1757205337886,5.60287184,200.73,200.69,7.66]
[1757205338187,7.66,200.72,200.69,7.66]
[1757205338389,5.60287184,200.73,200.69,7.66]
[1757205338584,7.66,200.72,200.69,7.66]
[1757205338789,5.60287184,200.73,200.69,7.66]
[1757205339582,7.66,200.72,200.69,7.66]
[1757205340087,5.60287184,200.73,200.69,7.66]
[1757205340883,7.66,200.72,200.69,7.66]
[1757205341085,5.60287184,200.73,200.69,7.66]
[1757205341286,7.66,200.72,200.69,7.66]
[1757205341888,5.60287184,200.73,200.69,7.66]
[1757205342291,13.26287184,200.72,200.69,7.66]
[1757205342494,7.66,200.71,200.69,7.66]
[1757205350403,13.26287184,200.71,200.69,7.66]
[1757205354307,5.60287184,200.7,200.69,7.66]
[1757205361714,7.66,200.71,200.69,7.66]
[1757205363415,16.06430776,200.71,200.69,7.66]
[1757205370218,7.66,200.71,200.7,1.57328197]
[1757205371419,13.26518564,200.71,200.7,1.57328197]
[1757205371818,7.66,200.71,200.7,1.57328197]
[1757205372420,7.66,200.71,200.7,6.08935144]
[1757205381427,7.66,200.71,200.7,4.51606947]
[1757205401741,13.26518564,200.71,200.7,4.51606947]
[1757205402337,13.26518564,200.71,200.69,7.66]
[1757205402533,5.60518564,200.71,200.68,8.21]
[1757205402841,5.60518564,200.71,200.7,8.21]
[1757205404138,5.60518564,200.72,200.71,8.21]
[1757205405138,5.60518564,200.72,200.71,13.08780915]
[1757205406541,5.60518564,200.73,200.72,8.21]
[1757205406738,5.60518564,200.73,200.72,13.08780915]
[1757205411743,5.60518564,200.75,200.72,4.87780915]
[1757205411945,13.24518564,200.77,200.74,7.45]
[1757205412137,13.24518564,200.77,200.75,4.87780915]
[1757205412341,13.24518564,200.77,200.76,4.87780915]
[1757205414449,7.64,200.77,200.76,4.87780915]
[1757205415748,13.58518564,200.78,200.76,12.32780915]
[1757205415944,13.58518564,200.78,200.76,7.45]
[1757205416841,5.60518564,200.78,200.77,12.32260185]
[1757205417045,13.58518564,200.8,200.77,12.32260185]
[1757205417250,7.98,200.79,200.78,4.87260185]
[1757205417447,5.60518564,200.81,200.78,12.32260185]
[1757205417647,7.98,200.8,200.78,7.45]
[1757205418045,7.98,200.82,200.8,7.45]
[1757205423648,7.98,200.83,200.8,7.45]
[1757205423843,6.47228087,200.84,200.8,7.45]
[1757205424248,7.98,200.83,200.8,7.45]
[1757205424454,0.86709523,200.84,200.8,7.45]
[1757205425049,7.98,200.83,200.8,7.45]
[1757205425254,0.86709523,200.84,200.8,7.45]
[1757205425855,7.98,200.83,200.8,7.45]
[1757205426051,0.86709523,200.84,200.8,7.45]
[1757205426252,7.98,200.83,200.8,7.45]
[1757205426755,0.86709523,200.84,200.8,7.45]
[1757205427857,7.98,200.83,200.8,7.45]
[1757205428357,0.86709523,200.84,200.8,7.45]
[1757205428559,7.98,200.83,200.8,7.45]
[1757205428752,0.86709523,200.84,200.8,7.45]
[1757205428958,7.98,200.83,200.8,7.45]
[1757205429458,0.86709523,200.84,200.8,7.45]
[1757205429759,7.98,200.83,200.8,7.45]
[1757205430156,0.86709523,200.84,200.8,7.45]
[1757205430362,7.98,200.83,200.8,7.45]
[1757205431360,0.86709523,200.84,200.8,7.45]
[1757205431561,7.98,200.83,200.8,7.45]
[1757205432755,0.86709523,200.84,200.8,7.45]
[1757205433163,7.98,200.83,200.8,7.45]
[1757205435568,7.98,200.83,200.79,2.45835287]